[Event "December 12 Early 2023"]
[Site "https://www.chess.com"]
[Date "2023.12.12"]
[Round "2"]
[White "Kozelov, Roman"]
[Black "Martinez Ramirez, Lennis"]
[Result "0-1"]
[Board "107"]
[TimeControl "180+1"]
[WhiteFideId "14133377"]
[BlackFideId "3509079"]
[WhiteElo "2425"]
[BlackElo "2696"]
[WhiteTeam "UKR"]
[BlackTeam "CUB"]
[WhiteClock "0:00:00"]
[BlackClock "0:01:21"]

1. e4 {[%clk 0:03:00]}  e5 {[%clk 0:02:55]} 2. d4 {[%clk 0:02:58]}  exd4 {[%clk 0:02:54]} 3. c3 {[%clk 0:02:58]}  Qe7 {[%clk 0:02:54]} 4. Bd3 {[%clk 0:02:54]}  d5 {[%clk 0:02:53]} 5. Qe2 {[%clk 0:02:52]}  Nf6 {[%clk 0:02:51]} 6. e5 {[%clk 0:02:50]}  Ne4 {[%clk 0:02:49]} 7. cxd4 {[%clk 0:02:47]}  Qb4+ {[%clk 0:02:48]} 8. Nd2 {[%clk 0:02:46]}  Nc6 {[%clk 0:02:43]} 9. Nf3 {[%clk 0:02:45]}  Nxd4 {[%clk 0:02:42]} 10. Nxd4 {[%clk 0:02:43]}  Qxd4 {[%clk 0:02:42]} 11. Nxe4 {[%clk 0:02:43]}  dxe4 {[%clk 0:02:42]} 12. Qxe4 {[%clk 0:02:34]}  Bb4+ {[%clk 0:02:41]} 13. Kf1 {[%clk 0:02:32]}  Qb6 {[%clk 0:02:33]} 14. Be3 {[%clk 0:02:24]}  Bc5 {[%clk 0:02:33]} 15. Rd1 {[%clk 0:02:05]}  Bxe3 {[%clk 0:02:32]} 16. fxe3 {[%clk 0:02:05]}  Qxb2 {[%clk 0:02:26]} 17. Rb1 {[%clk 0:01:55]}  Qxa2 {[%clk 0:02:25]} 18. Bc4 {[%clk 0:01:34]}  Qd2 {[%clk 0:01:54]} 19. Bb5+ {[%clk 0:00:00]}  Bd7 {[%clk 0:01:21]} 0-1

[Event "December 12 Early 2023"]
[Site "https://www.chess.com"]
[Date "2023.12.12"]
[Round "2"]
[White "Pakleza, Zbigniew"]
[Black "Dyulgerov, Volen"]
[Result "1-0"]
[Board "108"]
[TimeControl "180+1"]
[WhiteFideId "1119290"]
[BlackFideId "2918978"]
[WhiteElo "2687"]
[BlackElo "2412"]
[WhiteTeam "POL"]
[BlackTeam "BUL"]
[WhiteClock "0:00:09"]
[BlackClock "0:00:00"]

1. d4 {[%clk 0:03:00]}  d5 {[%clk 0:02:58]} 2. Bf4 {[%clk 0:03:00]}  Nf6 {[%clk 0:02:57]} 3. e3 {[%clk 0:03:01]}  e6 {[%clk 0:02:43]} 4. Nd2 {[%clk 0:03:01]}  Bd6 {[%clk 0:02:41]} 5. Bg3 {[%clk 0:03:01]}  h5 {[%clk 0:02:40]} 6. Ngf3 {[%clk 0:03:01]}  h4 {[%clk 0:02:35]} 7. Bxh4 {[%clk 0:02:51]}  c5 {[%clk 0:02:27]} 8. c3 {[%clk 0:02:49]}  Nc6 {[%clk 0:02:26]} 9. Be2 {[%clk 0:02:43]}  e5 {[%clk 0:02:18]} 10. dxe5 {[%clk 0:02:41]}  Nxe5 {[%clk 0:02:16]} 11. Bg5 {[%clk 0:02:32]}  Bf5 {[%clk 0:01:54]} 12. Nxe5 {[%clk 0:02:29]}  Bxe5 {[%clk 0:01:54]} 13. Nf3 {[%clk 0:02:28]}  Bd6 {[%clk 0:01:42]} 14. Bxf6 {[%clk 0:02:02]}  Qxf6 {[%clk 0:01:42]} 15. Qxd5 {[%clk 0:02:01]}  O-O-O {[%clk 0:01:42]} 16. O-O-O {[%clk 0:02:01]}  Kb8 {[%clk 0:01:21]} 17. Qb3 {[%clk 0:01:45]}  c4 {[%clk 0:01:17]} 18. Bxc4 {[%clk 0:01:39]}  Rc8 {[%clk 0:01:15]} 19. Nd4 {[%clk 0:01:26]}  Bg6 {[%clk 0:01:03]} 20. Bd5 {[%clk 0:01:00]}  Rc7 {[%clk 0:00:54]} 21. Nb5 {[%clk 0:00:53]}  Rhc8 {[%clk 0:00:37]} 22. Nxc7 {[%clk 0:00:49]}  Rxc7 {[%clk 0:00:37]} 23. Rd2 {[%clk 0:00:35]}  Qf5 {[%clk 0:00:31]} 24. e4 {[%clk 0:00:33]}  Qg5 {[%clk 0:00:28]} 25. g3 {[%clk 0:00:30]}  a5 {[%clk 0:00:16]} 26. f4 {[%clk 0:00:26]}  Qg4 {[%clk 0:00:15]} 27. a4 {[%clk 0:00:22]}  Qf3 {[%clk 0:00:14]} 28. Re1 {[%clk 0:00:19]}  Bb4 {[%clk 0:00:09]} 29. e5 {[%clk 0:00:11]}  Rxc3+ {[%clk 0:00:09]} 30. bxc3 {[%clk 0:00:11]}  Ba3+ {[%clk 0:00:10]} 31. Qxa3 {[%clk 0:00:10]}  Qf2 {[%clk 0:00:03]} 32. Qd6+ {[%clk 0:00:08]}  Ka7 {[%clk 0:00:00]} 33. Rxf2 {[%clk 0:00:09]} 1-0

[Event "December 12 Early 2023"]
[Site "https://www.chess.com"]
[Date "2023.12.12"]
[Round "2"]
[White "Matveeva, Olga"]
[Black "Gontcharov, Vladislav"]
[Result "1-0"]
[Board "111"]
[TimeControl "180+1"]
[WhiteFideId "24107018"]
[BlackFideId "4123492"]
[WhiteElo "2391"]
[BlackElo "2664"]
[WhiteTeam "RUS"]
[BlackTeam "RUS"]
[WhiteClock "0:00:25"]
[BlackClock "0:00:00"]

1. d4 {[%clk 0:03:00]}  Nf6 {[%clk 0:02:59]} 2. c4 {[%clk 0:03:01]}  e6 {[%clk 0:02:59]} 3. g3 {[%clk 0:03:01]}  d5 {[%clk 0:02:58]} 4. Nf3 {[%clk 0:03:01]}  Be7 {[%clk 0:02:53]} 5. Bg2 {[%clk 0:03:01]}  a6 {[%clk 0:02:53]} 6. Qc2 {[%clk 0:02:46]}  O-O {[%clk 0:02:47]} 7. O-O {[%clk 0:02:45]}  dxc4 {[%clk 0:02:47]} 8. a4 {[%clk 0:02:43]}  Nc6 {[%clk 0:02:14]} 9. Qxc4 {[%clk 0:02:39]}  Nb4 {[%clk 0:02:14]} 10. Bf4 {[%clk 0:02:35]}  Nfd5 {[%clk 0:02:03]} 11. Nc3 {[%clk 0:02:29]}  Nxf4 {[%clk 0:01:53]} 12. gxf4 {[%clk 0:02:30]}  Nd5 {[%clk 0:01:52]} 13. e3 {[%clk 0:02:28]}  c6 {[%clk 0:01:47]} 14. Ne5 {[%clk 0:02:27]}  Kh8 {[%clk 0:01:45]} 15. Kh1 {[%clk 0:02:26]}  f6 {[%clk 0:01:41]} 16. Nd3 {[%clk 0:02:22]}  Bd7 {[%clk 0:01:36]} 17. Rg1 {[%clk 0:02:21]}  b5 {[%clk 0:01:33]} 18. Qb3 {[%clk 0:02:17]}  Qe8 {[%clk 0:01:25]} 19. Ne4 {[%clk 0:02:14]}  Qh5 {[%clk 0:01:15]} 20. Ndc5 {[%clk 0:02:11]}  Bxc5 {[%clk 0:01:15]} 21. Nxc5 {[%clk 0:02:12]}  Bc8 {[%clk 0:01:07]} 22. axb5 {[%clk 0:02:01]}  cxb5 {[%clk 0:01:07]} 23. Be4 {[%clk 0:01:48]}  Ra7 {[%clk 0:00:55]} 24. Rg3 {[%clk 0:01:45]}  Rc7 {[%clk 0:00:39]} 25. Rag1 {[%clk 0:01:42]}  Rd8 {[%clk 0:00:29]} 26. Bf3 {[%clk 0:01:30]}  Qe8 {[%clk 0:00:27]} 27. Be4 {[%clk 0:01:07]}  f5 {[%clk 0:00:23]} 28. Bf3 {[%clk 0:00:57]}  Nf6 {[%clk 0:00:22]} 29. Rh3 {[%clk 0:00:51]}  a5 {[%clk 0:00:19]} 30. Qc2 {[%clk 0:00:32]}  b4 {[%clk 0:00:18]} 31. Qe2 {[%clk 0:00:32]}  Rd6 {[%clk 0:00:15]} 32. Rh4 {[%clk 0:00:30]}  a4 {[%clk 0:00:12]} 33. Ra1 {[%clk 0:00:29]}  Ra7 {[%clk 0:00:12]} 34. Rh3 {[%clk 0:00:27]}  a3 {[%clk 0:00:11]} 35. bxa3 {[%clk 0:00:27]}  bxa3 {[%clk 0:00:12]} 36. Rg3 {[%clk 0:00:27]}  Qd8 {[%clk 0:00:09]} 37. Rgg1 {[%clk 0:00:27]}  Rb6 {[%clk 0:00:07]} 38. Qd3 {[%clk 0:00:27]}  Qc7 {[%clk 0:00:06]} 39. Rxa3 {[%clk 0:00:26]}  Rxa3 {[%clk 0:00:05]} 40. Qxa3 {[%clk 0:00:27]}  h6 {[%clk 0:00:06]} 41. Ra1 {[%clk 0:00:27]}  Kh7 {[%clk 0:00:05]} 42. Qa8 {[%clk 0:00:27]}  Rb2 {[%clk 0:00:04]} 43. Kg2 {[%clk 0:00:26]}  Ng4 {[%clk 0:00:02]} 44. Bxg4 {[%clk 0:00:24]}  fxg4 {[%clk 0:00:00]} 45. Qe4+ {[%clk 0:00:25]} 1-0

[Event "December 12 Early 2023"]
[Site "https://www.chess.com"]
[Date "2023.12.12"]
[Round "2"]
[White "Ingebretsen, Jens E"]
[Black "Barath1308"]
[Result "1-0"]
[Board "113"]
[TimeControl "180+1"]
[WhiteFideId "1522965"]
[WhiteElo "2612"]
[BlackElo "2379"]
[WhiteTeam "NOR"]
[WhiteClock "0:01:27"]
[BlackClock "0:00:47"]

1. d4 {[%clk 0:03:00]}  Nf6 {[%clk 0:02:59]} 2. Bg5 {[%clk 0:03:01]}  d5 {[%clk 0:02:51]} 3. Bxf6 {[%clk 0:03:01]}  exf6 {[%clk 0:02:50]} 4. Nf3 {[%clk 0:03:02]}  Bd6 {[%clk 0:02:48]} 5. e3 {[%clk 0:03:02]}  O-O {[%clk 0:02:47]} 6. Bd3 {[%clk 0:03:01]}  Nd7 {[%clk 0:02:39]} 7. Nbd2 {[%clk 0:03:01]}  Re8 {[%clk 0:02:39]} 8. Nf1 {[%clk 0:03:01]}  Nf8 {[%clk 0:02:39]} 9. Ng3 {[%clk 0:03:01]}  Ng6 {[%clk 0:02:39]} 10. Nf5 {[%clk 0:02:57]}  Nf4 {[%clk 0:02:23]} 11. O-O {[%clk 0:02:29]}  Nxd3 {[%clk 0:02:21]} 12. Qxd3 {[%clk 0:02:30]}  Bxf5 {[%clk 0:02:17]} 13. Qxf5 {[%clk 0:02:31]}  g6 {[%clk 0:02:17]} 14. Qd3 {[%clk 0:02:31]}  f5 {[%clk 0:02:16]} 15. c4 {[%clk 0:02:31]}  dxc4 {[%clk 0:02:15]} 16. Qxc4 {[%clk 0:02:31]}  c6 {[%clk 0:02:15]} 17. Rfd1 {[%clk 0:02:25]}  Qf6 {[%clk 0:02:00]} 18. b4 {[%clk 0:02:22]}  Rac8 {[%clk 0:01:56]} 19. a4 {[%clk 0:02:21]}  Qe6 {[%clk 0:01:55]} 20. Qxe6 {[%clk 0:02:19]}  fxe6 {[%clk 0:01:54]} 21. Rab1 {[%clk 0:02:20]}  h6 {[%clk 0:01:51]} 22. Nd2 {[%clk 0:02:16]}  Kf7 {[%clk 0:01:47]} 23. Nc4 {[%clk 0:02:17]}  Bb8 {[%clk 0:01:46]} 24. f4 {[%clk 0:02:16]}  g5 {[%clk 0:01:45]} 25. g3 {[%clk 0:02:15]}  Red8 {[%clk 0:01:37]} 26. Kf2 {[%clk 0:02:13]}  Rd5 {[%clk 0:01:36]} 27. Ke2 {[%clk 0:02:03]}  Rh8 {[%clk 0:01:34]} 28. a5 {[%clk 0:02:03]}  a6 {[%clk 0:01:25]} 29. Nb6 {[%clk 0:01:59]}  Rb5 {[%clk 0:01:23]} 30. Kd3 {[%clk 0:01:52]}  Bd6 {[%clk 0:01:22]} 31. Kc4 {[%clk 0:01:50]}  Bc7 {[%clk 0:01:22]} 32. Nd7 {[%clk 0:01:49]}  Bd6 {[%clk 0:01:17]} 33. Nc5 {[%clk 0:01:38]}  g4 {[%clk 0:01:11]} 34. Re1 {[%clk 0:01:35]}  h5 {[%clk 0:01:10]} 35. e4 {[%clk 0:01:35]}  fxe4 {[%clk 0:01:04]} 36. Rxe4 {[%clk 0:01:31]}  Bxc5 {[%clk 0:01:04]} 37. dxc5 {[%clk 0:01:31]}  Rd8 {[%clk 0:00:57]} 38. Rbe1 {[%clk 0:01:26]}  Rd2 {[%clk 0:00:55]} 39. R4e2 {[%clk 0:01:27]}  Rxe2 {[%clk 0:00:52]} 40. Rxe2 {[%clk 0:01:27]}  Kf6 {[%clk 0:00:52]} 41. Re5 {[%clk 0:01:27]}  h4 {[%clk 0:00:52]} 42. gxh4 {[%clk 0:01:27]}  b6 {[%clk 0:00:50]} 43. cxb6 {[%clk 0:01:25]}  Rxe5 {[%clk 0:00:49]} 44. fxe5+ {[%clk 0:01:26]}  Kxe5 {[%clk 0:00:47]} 45. b7 {[%clk 0:01:27]} 1-0

[Event "December 12 Early 2023"]
[Site "https://www.chess.com"]
[Date "2023.12.12"]
[Round "2"]
[White "Vlassov, Nikolai"]
[Black "Chlpik, Martin"]
[Result "1-0"]
[Board "115"]
[TimeControl "180+1"]
[WhiteFideId "4103360"]
[BlackFideId "14923351"]
[WhiteElo "2597"]
[BlackElo "2332"]
[WhiteTeam "FID"]
[BlackTeam "SVK"]
[WhiteClock "0:00:07"]
[BlackClock "0:00:00"]

1. e4 {[%clk 0:03:00]}  c5 {[%clk 0:02:57]} 2. c3 {[%clk 0:03:00]}  e6 {[%clk 0:02:54]} 3. d4 {[%clk 0:03:00]}  d5 {[%clk 0:02:54]} 4. e5 {[%clk 0:02:59]}  Bd7 {[%clk 0:02:53]} 5. Nf3 {[%clk 0:02:58]}  Qb6 {[%clk 0:02:53]} 6. a3 {[%clk 0:02:58]}  Bb5 {[%clk 0:02:53]} 7. c4 {[%clk 0:02:58]}  dxc4 {[%clk 0:02:53]} 8. d5 {[%clk 0:02:59]}  Nd7 {[%clk 0:02:51]} 9. Nc3 {[%clk 0:02:54]}  O-O-O {[%clk 0:02:49]} 10. a4 {[%clk 0:02:46]}  Ba6 {[%clk 0:02:49]} 11. a5 {[%clk 0:02:46]}  Qc7 {[%clk 0:02:46]} 12. d6 {[%clk 0:02:43]}  Qc6 {[%clk 0:02:39]} 13. Bf4 {[%clk 0:02:38]}  f6 {[%clk 0:02:35]} 14. Qa4 {[%clk 0:02:17]}  Qxa4 {[%clk 0:02:28]} 15. Rxa4 {[%clk 0:02:17]}  g5 {[%clk 0:02:27]} 16. Bg3 {[%clk 0:02:04]}  g4 {[%clk 0:02:27]} 17. Nd2 {[%clk 0:02:02]}  Nxe5 {[%clk 0:02:24]} 18. Bxe5 {[%clk 0:02:02]}  fxe5 {[%clk 0:02:24]} 19. Nxc4 {[%clk 0:01:49]}  Bxd6 {[%clk 0:02:09]} 20. Ne4 {[%clk 0:01:42]}  Bc7 {[%clk 0:02:00]} 21. Nxc5 {[%clk 0:01:38]}  Bb5 {[%clk 0:01:58]} 22. Ra1 {[%clk 0:01:30]}  Rd4 {[%clk 0:01:47]} 23. Ne3 {[%clk 0:01:24]}  Bxf1 {[%clk 0:01:44]} 24. Rxf1 {[%clk 0:01:18]}  Nf6 {[%clk 0:01:41]} 25. Nxe6 {[%clk 0:01:13]}  Re8 {[%clk 0:01:40]} 26. Nxc7 {[%clk 0:01:10]}  Kxc7 {[%clk 0:01:41]} 27. Ke2 {[%clk 0:01:10]}  Red8 {[%clk 0:01:25]} 28. Rac1+ {[%clk 0:01:10]}  Kb8 {[%clk 0:01:23]} 29. Rfd1 {[%clk 0:01:10]}  Rxd1 {[%clk 0:01:23]} 30. Rxd1 {[%clk 0:01:09]}  Rxd1 {[%clk 0:01:20]} 31. Kxd1 {[%clk 0:01:05]}  Kc7 {[%clk 0:01:21]} 32. Nc4 {[%clk 0:01:05]}  Nd7 {[%clk 0:01:15]} 33. Kd2 {[%clk 0:01:02]}  Kc6 {[%clk 0:01:15]} 34. Kc3 {[%clk 0:00:57]}  Kd5 {[%clk 0:01:08]} 35. b4 {[%clk 0:00:51]}  h5 {[%clk 0:01:06]} 36. Kd3 {[%clk 0:00:44]}  Nf8 {[%clk 0:00:55]} 37. Ne3+ {[%clk 0:00:43]}  Ke6 {[%clk 0:00:52]} 38. Kc4 {[%clk 0:00:31]}  Ng6 {[%clk 0:00:50]} 39. g3 {[%clk 0:00:31]}  Nf8 {[%clk 0:00:47]} 40. b5 {[%clk 0:00:28]}  Nh7 {[%clk 0:00:47]} 41. Kc5 {[%clk 0:00:25]}  Ng5 {[%clk 0:00:42]} 42. a6 {[%clk 0:00:15]}  Ne4+ {[%clk 0:00:41]} 43. Kc4 {[%clk 0:00:15]}  b6 {[%clk 0:00:38]} 44. Nd1 {[%clk 0:00:13]}  Nd2+ {[%clk 0:00:36]} 45. Kd3 {[%clk 0:00:12]}  Nf3 {[%clk 0:00:35]} 46. Nc3 {[%clk 0:00:09]}  Nxh2 {[%clk 0:00:31]} 47. Na4 {[%clk 0:00:09]}  Kd5 {[%clk 0:00:15]} 48. Nxb6+ {[%clk 0:00:09]}  Kc5 {[%clk 0:00:14]} 49. Nc8 {[%clk 0:00:08]}  Kxb5 {[%clk 0:00:15]} 50. Nxa7+ {[%clk 0:00:08]}  Kxa6 {[%clk 0:00:15]} 51. Nc6 {[%clk 0:00:09]}  Nf3 {[%clk 0:00:11]} 52. Ke4 {[%clk 0:00:09]}  h4 {[%clk 0:00:07]} 53. gxh4 {[%clk 0:00:08]}  Nxh4 {[%clk 0:00:07]} 54. Nxe5 {[%clk 0:00:08]}  Kb6 {[%clk 0:00:03]} 55. Nxg4 {[%clk 0:00:08]}  Kc6 {[%clk 0:00:03]} 56. Ke5 {[%clk 0:00:06]}  Kd7 {[%clk 0:00:03]} 57. Kf6 {[%clk 0:00:06]}  Nf3 {[%clk 0:00:03]} 58. Ne5+ {[%clk 0:00:06]}  Nxe5 {[%clk 0:00:00]} 59. Kxe5 {[%clk 0:00:07]} 1-0

[Event "December 12 Early 2023"]
[Site "https://www.chess.com"]
[Date "2023.12.12"]
[Round "2"]
[White "Silva, Pedro Gil Ferreira Da"]
[Black "Spata, German"]
[Result "0-1"]
[Board "116"]
[TimeControl "180+1"]
[WhiteFideId "1946102"]
[BlackFideId "113026"]
[WhiteElo "2324"]
[BlackElo "2594"]
[WhiteTeam "POR"]
[BlackTeam "ARG"]
[WhiteClock "0:01:43"]
[BlackClock "0:00:57"]

1. c4 {[%clk 0:03:00]}  e6 {[%clk 0:02:54]} 2. Nf3 {[%clk 0:02:59]}  Nf6 {[%clk 0:02:54]} 3. g3 {[%clk 0:02:58]}  b6 {[%clk 0:02:54]} 4. Bg2 {[%clk 0:02:59]}  Bb7 {[%clk 0:02:55]} 5. O-O {[%clk 0:02:59]}  Be7 {[%clk 0:02:54]} 6. b3 {[%clk 0:03:00]}  O-O {[%clk 0:02:54]} 7. Bb2 {[%clk 0:03:00]}  c5 {[%clk 0:02:52]} 8. d4 {[%clk 0:03:01]}  cxd4 {[%clk 0:02:52]} 9. Bxd4 {[%clk 0:03:01]}  d6 {[%clk 0:02:52]} 10. Bb2 {[%clk 0:02:59]}  Nbd7 {[%clk 0:02:52]} 11. Nc3 {[%clk 0:03:00]}  a6 {[%clk 0:02:52]} 12. Qd2 {[%clk 0:03:00]}  Qc7 {[%clk 0:02:51]} 13. Rfd1 {[%clk 0:03:00]}  Rfe8 {[%clk 0:02:49]} 14. Rac1 {[%clk 0:03:01]}  Rac8 {[%clk 0:02:49]} 15. Nh4 {[%clk 0:03:00]}  Bf8 {[%clk 0:02:43]} 16. Bxb7 {[%clk 0:02:59]}  Qxb7 {[%clk 0:02:43]} 17. Nf3 {[%clk 0:03:00]}  b5 {[%clk 0:02:40]} 18. cxb5 {[%clk 0:02:57]}  axb5 {[%clk 0:02:41]} 19. Nd4 {[%clk 0:02:51]}  b4 {[%clk 0:02:39]} 20. Na4 {[%clk 0:02:50]}  d5 {[%clk 0:02:36]} 21. Rxc8 {[%clk 0:02:46]}  Rxc8 {[%clk 0:02:35]} 22. Rc1 {[%clk 0:02:46]}  Ne4 {[%clk 0:02:31]} 23. Qd1 {[%clk 0:02:46]}  Ndc5 {[%clk 0:02:20]} 24. Nxc5 {[%clk 0:02:42]}  Bxc5 {[%clk 0:02:14]} 25. e3 {[%clk 0:02:38]}  h6 {[%clk 0:02:09]} 26. Qg4 {[%clk 0:02:21]}  Bf8 {[%clk 0:01:54]} 27. Rxc8 {[%clk 0:02:17]}  Qxc8 {[%clk 0:01:54]} 28. Qe2 {[%clk 0:02:18]}  Qa8 {[%clk 0:01:45]} 29. f3 {[%clk 0:02:14]}  Nc3 {[%clk 0:01:38]} 30. Bxc3 {[%clk 0:02:11]}  bxc3 {[%clk 0:01:39]} 31. Qc2 {[%clk 0:02:11]}  Qa5 {[%clk 0:01:31]} 32. a4 {[%clk 0:02:04]}  e5 {[%clk 0:01:21]} 33. Nc6 {[%clk 0:01:51]}  Qc5 {[%clk 0:01:13]} 34. Nd8 {[%clk 0:01:45]}  Qxe3+ {[%clk 0:01:04]} 35. Kg2 {[%clk 0:01:43]}  Qd2+ {[%clk 0:00:57]} 0-1

[Event "December 12 Early 2023"]
[Site "https://www.chess.com"]
[Date "2023.12.12"]
[Round "2"]
[White "Makarian, Rudik"]
[Black "NastyaHn"]
[Result "1-0"]
[Board "121"]
[TimeControl "180+1"]
[WhiteFideId "44105681"]
[WhiteElo "2931"]
[BlackElo "2232"]
[WhiteTeam "FID"]
[WhiteClock "0:01:40"]
[BlackClock "0:00:00"]

1. Nf3 {[%clk 0:03:00]}  Nf6 {[%clk 0:02:57]} 2. c4 {[%clk 0:03:00]}  c6 {[%clk 0:02:57]} 3. Nc3 {[%clk 0:02:59]}  d5 {[%clk 0:02:57]} 4. d4 {[%clk 0:03:00]}  g6 {[%clk 0:02:51]} 5. g3 {[%clk 0:03:01]}  Bg7 {[%clk 0:02:51]} 6. cxd5 {[%clk 0:03:00]}  cxd5 {[%clk 0:02:51]} 7. Bg2 {[%clk 0:03:01]}  O-O {[%clk 0:02:50]} 8. O-O {[%clk 0:03:01]}  Ne4 {[%clk 0:02:48]} 9. Bf4 {[%clk 0:03:01]}  Nc6 {[%clk 0:02:39]} 10. e3 {[%clk 0:02:57]}  Bg4 {[%clk 0:02:17]} 11. h3 {[%clk 0:02:49]}  Bxf3 {[%clk 0:02:16]} 12. Bxf3 {[%clk 0:02:49]}  Nxc3 {[%clk 0:02:15]} 13. bxc3 {[%clk 0:02:50]}  e6 {[%clk 0:02:11]} 14. e4 {[%clk 0:02:41]}  dxe4 {[%clk 0:01:55]} 15. Bxe4 {[%clk 0:02:42]}  Rc8 {[%clk 0:01:55]} 16. Qa4 {[%clk 0:02:38]}  a6 {[%clk 0:01:10]} 17. Rac1 {[%clk 0:02:36]}  Qe7 {[%clk 0:01:07]} 18. Rfd1 {[%clk 0:02:36]}  Rfd8 {[%clk 0:01:06]} 19. h4 {[%clk 0:02:35]}  e5 {[%clk 0:00:41]} 20. Bg5 {[%clk 0:02:33]}  Bf6 {[%clk 0:00:38]} 21. d5 {[%clk 0:02:32]}  Nb8 {[%clk 0:00:27]} 22. Be3 {[%clk 0:02:22]}  Qd6 {[%clk 0:00:17]} 23. c4 {[%clk 0:02:13]}  Nd7 {[%clk 0:00:17]} 24. Bg2 {[%clk 0:02:03]}  Nc5 {[%clk 0:00:15]} 25. Qb4 {[%clk 0:02:01]}  Be7 {[%clk 0:00:14]} 26. Rb1 {[%clk 0:02:01]}  Rd7 {[%clk 0:00:12]} 27. Qb6 {[%clk 0:01:56]}  Rdc7 {[%clk 0:00:05]} 28. Qxd6 {[%clk 0:01:50]}  Bxd6 {[%clk 0:00:05]} 29. Rb6 {[%clk 0:01:50]}  Rd8 {[%clk 0:00:05]} 30. Rdb1 {[%clk 0:01:50]}  Na4 {[%clk 0:00:03]} 31. Rxb7 {[%clk 0:01:48]}  Rxc4 {[%clk 0:00:03]} 32. Bg5 {[%clk 0:01:42]}  Rf8 {[%clk 0:00:02]} 33. Rd7 {[%clk 0:01:42]}  Bc5 {[%clk 0:00:01]} 34. Bh6 {[%clk 0:01:41]}  Re8 {[%clk 0:00:01]} 35. d6 {[%clk 0:01:41]}  Nb6 {[%clk 0:00:00]} 36. Rxb6 {[%clk 0:01:40]} 1-0

[Event "December 12 Early 2023"]
[Site "https://www.chess.com"]
[Date "2023.12.12"]
[Round "2"]
[White "Baskakov, Egor"]
[Black "Salinas Tomas, Daniel"]
[Result "1-0"]
[Board "123"]
[TimeControl "180+1"]
[WhiteFideId "24197866"]
[BlackFideId "24597716"]
[WhiteElo "2898"]
[BlackElo "2412"]
[WhiteTeam "RUS"]
[BlackTeam "ESP"]
[WhiteClock "0:00:08"]
[BlackClock "0:00:03"]

1. e4 {[%clk 0:03:00]}  c6 {[%clk 0:02:58]} 2. d4 {[%clk 0:03:00]}  d5 {[%clk 0:02:56]} 3. e5 {[%clk 0:03:01]}  Bf5 {[%clk 0:02:56]} 4. Ne2 {[%clk 0:03:01]}  e6 {[%clk 0:02:54]} 5. Ng3 {[%clk 0:03:01]}  Bg6 {[%clk 0:02:54]} 6. h4 {[%clk 0:03:02]}  h6 {[%clk 0:02:55]} 7. h5 {[%clk 0:03:02]}  Bh7 {[%clk 0:02:53]} 8. Bd3 {[%clk 0:03:02]}  Bxd3 {[%clk 0:02:53]} 9. cxd3 {[%clk 0:03:03]}  c5 {[%clk 0:02:53]} 10. dxc5 {[%clk 0:03:04]}  Bxc5 {[%clk 0:02:54]} 11. d4 {[%clk 0:03:05]}  Bb6 {[%clk 0:02:55]} 12. Nc3 {[%clk 0:03:05]}  Nc6 {[%clk 0:02:54]} 13. Be3 {[%clk 0:03:05]}  Nge7 {[%clk 0:02:55]} 14. Qg4 {[%clk 0:03:06]}  Kf8 {[%clk 0:02:52]} 15. O-O {[%clk 0:03:05]}  Na5 {[%clk 0:02:52]} 16. Rae1 {[%clk 0:03:02]}  Nc4 {[%clk 0:02:50]} 17. Bc1 {[%clk 0:03:02]}  Nc6 {[%clk 0:02:50]} 18. Nce2 {[%clk 0:02:55]}  f5 {[%clk 0:02:37]} 19. Nxf5 {[%clk 0:02:32]}  exf5 {[%clk 0:02:32]} 20. Qxf5+ {[%clk 0:02:33]}  Kg8 {[%clk 0:02:29]} 21. Qe6+ {[%clk 0:02:28]}  Kh7 {[%clk 0:02:26]} 22. b3 {[%clk 0:02:27]}  N4a5 {[%clk 0:02:24]} 23. Qg6+ {[%clk 0:02:26]}  Kg8 {[%clk 0:02:24]} 24. Qe6+ {[%clk 0:02:14]}  Kh7 {[%clk 0:02:23]} 25. Bxh6 {[%clk 0:01:54]}  Qe8 {[%clk 0:02:15]} 26. Qxe8 {[%clk 0:01:51]}  Rhxe8 {[%clk 0:02:16]} 27. Be3 {[%clk 0:01:51]}  Rac8 {[%clk 0:01:56]} 28. Rd1 {[%clk 0:01:31]}  Nb4 {[%clk 0:01:43]} 29. Rd2 {[%clk 0:01:30]}  Rc6 {[%clk 0:01:34]} 30. Nf4 {[%clk 0:01:24]}  Bd8 {[%clk 0:01:13]} 31. Ng6 {[%clk 0:01:07]}  Rc2 {[%clk 0:01:07]} 32. Rfd1 {[%clk 0:01:05]}  Rxa2 {[%clk 0:01:03]} 33. f4 {[%clk 0:00:36]}  Rxd2 {[%clk 0:00:31]} 34. Rxd2 {[%clk 0:00:37]}  Nbc6 {[%clk 0:00:27]} 35. Rd3 {[%clk 0:00:32]}  Nb4 {[%clk 0:00:16]} 36. Rd2 {[%clk 0:00:31]}  Bb6 {[%clk 0:00:14]} 37. Bf2 {[%clk 0:00:25]}  Nbc6 {[%clk 0:00:12]} 38. Rd3 {[%clk 0:00:24]}  Nb4 {[%clk 0:00:12]} 39. Rf3 {[%clk 0:00:20]}  Nac6 {[%clk 0:00:10]} 40. Nh4 {[%clk 0:00:13]}  Bxd4 {[%clk 0:00:09]} 41. g4 {[%clk 0:00:09]}  Bxf2+ {[%clk 0:00:08]} 42. Kxf2 {[%clk 0:00:10]}  d4 {[%clk 0:00:07]} 43. g5 {[%clk 0:00:10]}  d3 {[%clk 0:00:08]} 44. g6+ {[%clk 0:00:10]}  Kg8 {[%clk 0:00:08]} 45. Ke3 {[%clk 0:00:08]}  Rd8 {[%clk 0:00:07]} 46. Kd2 {[%clk 0:00:09]}  Nd4 {[%clk 0:00:08]} 47. Rf1 {[%clk 0:00:08]}  Nxb3+ {[%clk 0:00:08]} 48. Kc3 {[%clk 0:00:09]}  d2 {[%clk 0:00:08]} 49. Kxb3 {[%clk 0:00:08]}  Nd3 {[%clk 0:00:04]} 50. Nf3 {[%clk 0:00:05]}  Nf2 {[%clk 0:00:03]} 51. Nxd2 {[%clk 0:00:04]}  Rxd2 {[%clk 0:00:04]} 52. f5 {[%clk 0:00:05]}  Ne4 {[%clk 0:00:02]} 53. f6 {[%clk 0:00:05]}  gxf6 {[%clk 0:00:03]} 54. exf6 {[%clk 0:00:06]}  Rd8 {[%clk 0:00:03]} 55. f7+ {[%clk 0:00:07]}  Kg7 {[%clk 0:00:04]} 56. h6+ {[%clk 0:00:07]}  Kxg6 {[%clk 0:00:04]} 57. f8=Q {[%clk 0:00:07]}  Rxf8 {[%clk 0:00:04]} 58. Rxf8 {[%clk 0:00:08]}  Kxh6 {[%clk 0:00:05]} 59. Rf4 {[%clk 0:00:08]}  Nd6 {[%clk 0:00:03]} 60. Rf6+ {[%clk 0:00:08]} 1-0